bitfinex/quotes_ETHUSD_20250517
["timestamp","ask_amount","ask_price","bid_price","bid_amount"]
[1747522627177,45.43155398,2460.9,2460.8,0.48]
[1747522627358,37.53355398,2460.9,2460.8,0.48]
[1747522627680,45.43255398,2460.9,2460.8,0.48]
[1747522627859,29.61155398,2460.9,2460.8,0.48]
[1747522628059,45.42955398,2460.9,2460.8,0.48]
[1747522628559,29.61155398,2460.9,2460.8,0.48]
[1747522628754,37.50555398,2460.9,2460.8,0.48]
[1747522630662,29.61155398,2460.9,2460.8,0.48]
[1747522630868,37.50455398,2460.9,2460.8,0.48]
[1747522635067,29.61155398,2460.9,2460.8,0.48]
[1747522635266,40.00455398,2460.9,2460.8,0.48]
[1747522635467,37.50455398,2460.9,2460.8,0.48]
[1747522636477,9.31358806,2461.2,2460.8,1.2414]
[1747522636673,0.47350892,2461.4,2461.0,0.7614]
[1747522636875,0.47350892,2461.4,2461.1,0.7614]
[1747522637074,4.53632077,2461.4,2461.2,0.48247749]
[1747522637304,0.47350892,2461.4,2461.1,4.82457355]
[1747522637507,0.47350892,2461.4,2461.2,0.7614]
[1747522638210,4.06289359,2461.3,2461.2,0.7614]
[1747522640512,4.06282593,2461.4,2461.2,0.7614]
[1747522641015,7.893,2461.5,2461.2,0.7614]
[1747522641176,4.06273683,2461.4,2461.2,0.7614]
[1747522641594,2.74353467,2461.8,2461.3,0.48]
[1747522641595,14.7256098,2461.8,2461.3,0.48]
[1747522641811,7.892,2461.7,2461.4,0.8031]
[1747522642007,7.891,2461.7,2461.4,1.33769014]
[1747522642774,11.95326269,2461.7,2461.4,1.33769014]
[1747522643115,4.06223663,2461.7,2461.4,1.33769014]
[1747522643405,11.95323663,2461.7,2461.4,1.33769014]
[1747522643808,2.74353467,2461.8,2461.4,1.33769014]
[1747522643995,1.99003089,2461.9,2461.6,0.8031]
[1747522644305,6.05195693,2461.9,2461.6,1.2831]
[1747522646612,4.06192604,2461.9,2461.6,1.2831]
[1747522649513,4.06209607,2461.8,2461.6,1.2831]
[1747522649717,4.06180684,2462.0,2461.6,1.2831]
[1747522649884,4.06180684,2462.0,2461.6,1.81767567]
[1747522650213,4.06206306,2461.9,2461.6,1.81767567]
[1747522650414,4.06215535,2461.8,2461.6,1.2831]
[1747522650580,4.06198607,2461.9,2461.6,1.2831]
[1747522651741,7.889,2462.1,2461.6,5.3454904]
[1747522652042,11.95067499,2462.1,2461.6,1.2831]
[1747522652196,4.06177617,2462.0,2461.6,1.2831]
[1747522652527,4.06177617,2462.0,2461.6,2.22392411]
[1747522652731,4.0616678,2462.1,2461.6,6.28623611]
[1747522652928,7.888,2462.1,2461.7,4.06216396]
[1747522653282,11.94958025,2462.1,2461.7,4.06216396]
[1747522653738,7.888,2462.5,2462.1,4.06148836]
[1747522654014,9.31358806,2462.8,2462.3,0.7761]
[1747522654232,9.31358806,2462.8,2462.3,4.83727999]
[1747522654382,21.26111365,2462.8,2462.3,4.83727999]
[1747522654887,4.06059588,2462.7,2462.3,0.7761]
[1747522655088,4.06059588,2462.7,2462.3,4.83734002]
[1747522655286,4.06059588,2462.7,2462.4,0.531734]
[1747522655630,11.94759588,2462.7,2462.4,1.011734]
[1747522656320,4.06059588,2462.7,2462.4,1.011734]
[1747522656627,8.0,2463.0,2462.4,1.011734]
[1747522656949,11.94626777,2462.9,2462.5,0.768]
[1747522657591,12.0601656,2463.0,2462.5,4.82890466]
[1747522657787,19.9461656,2463.0,2462.5,4.82890466]
[1747522658227,8.0,2463.0,2462.5,0.768]
[1747522658433,7.886,2463.0,2462.5,0.768]
[1747522658758,7.886,2463.0,2462.6,0.53090163]
[1747522659035,11.94614073,2463.0,2462.6,0.53090163]
[1747522659806,7.885,2463.2,2462.9,4.06017614]
[1747522660028,7.885,2463.2,2463.0,0.48]
[1747522660212,7.885,2463.3,2463.0,0.48]
[1747522660437,11.94461206,2463.3,2463.0,0.48]
[1747522660732,7.885,2463.3,2463.0,0.48]
[1747522660887,7.885,2463.3,2463.0,0.9340254]
[1747522661532,7.885,2463.3,2463.1,0.8227]
[1747522662032,11.94460898,2463.3,2463.1,0.8227]
[1747522662529,7.885,2463.3,2463.1,0.8227]
[1747522662704,11.94460674,2463.3,2463.1,0.8227]
[1747522662909,7.885,2463.3,2463.1,1.40439138]
[1747522663331,11.94460782,2463.3,2463.1,1.88439138]
[1747522663495,4.05975966,2463.2,2463.1,0.48]
[1747522665029,13.37306107,2463.4,2463.1,0.48]
[1747522665230,7.883,2463.3,2463.1,0.48]
[1747522665531,7.883,2463.3,2463.2,0.8227]
[1747522666234,7.883,2463.3,2463.2,1.3027]
[1747522666444,8.0,2463.4,2463.2,1.3027]
[1747522667442,12.05943527,2463.4,2463.2,1.3027]
[1747522667807,7.883,2463.5,2463.2,1.3027]
[1747522667808,19.94135465,2463.5,2463.2,1.3027]
[1747522668946,7.881,2463.6,2463.2,1.83896977]
[1747522669510,7.881,2463.6,2463.2,5.89863321]
[1747522669753,8.0,2463.8,2463.4,4.05935644]
[1747522670046,7.881,2463.7,2463.5,0.48]
[1747522670202,15.884,2464.1,2463.6,0.8252]
[1747522670405,8.0,2463.8,2463.6,0.8252]
[1747522671843,4.058771,2463.8,2463.7,0.48]
[1747522674955,11.937771,2463.8,2463.7,0.48]
[1747522675545,10.76684224,2464.2,2463.7,1.2784]
[1747522675546,9.31358806,2464.2,2463.7,1.2784]
[1747522675708,7.879,2463.9,2463.7,1.8121418]
[1747522675908,7.879,2463.9,2463.7,1.2784]
[1747522676518,11.9376067,2463.9,2463.7,1.2784]
[1747522676922,4.05847574,2464.0,2463.7,1.2784]
[1747522677126,4.05855982,2464.0,2463.7,1.2784]
[1747522677443,12.05835742,2464.1,2463.7,1.2784]
[1747522677615,19.93735742,2464.1,2463.7,2.2180613]
[1747522678326,4.05844155,2464.0,2463.7,2.2180613]
[1747522679454,19.93737971,2464.1,2463.7,2.2180613]
[1747522679657,4.05855471,2464.0,2463.7,2.2180613]
[1747522682153,13.37171404,2464.2,2463.7,2.2180613]
[1747522682154,17.538,2464.3,2463.7,2.2180613]
[1747522682315,17.538,2464.3,2464.0,4.05844027]
[1747522682316,7.877,2464.2,2464.0,4.05844027]
[1747522682517,7.877,2464.2,2463.9,4.80895762]
[1747522683252,4.05797601,2464.3,2463.9,0.7504]
[1747522683444,4.05812776,2464.2,2463.9,0.7504]
[1747522683646,4.05812776,2464.2,2464.0,0.4809109]
[1747522684356,4.05802207,2464.3,2464.0,0.4809109]
[1747522685056,4.05827685,2464.1,2464.0,0.4809109]
[1747522685258,4.0583756,2464.1,2463.9,0.7504]
[1747522686066,12.05794749,2464.3,2463.7,0.48]
[1747522686223,4.058771,2463.8,2463.7,0.48]
[1747522686428,27.811771,2463.8,2463.7,0.48]
[1747522690130,37.12535906,2463.8,2463.7,0.48]
[1747522692343,47.5265108,2463.8,2463.7,0.48]
[1747522692957,45.3983948,2463.8,2463.7,0.48]
[1747522693435,44.2587808,2463.8,2463.7,0.48]
[1747522695263,0.55,2463.6,2462.0,0.7901]
[1747522695574,0.55,2463.6,2462.0,2.06081278]
[1747522695575,4.0613898,2462.3,2462.0,2.06081278]
[1747522695737,4.06096753,2462.5,2462.0,2.06081278]
[1747522695937,4.06107862,2462.4,2462.0,2.06081278]
[1747522696137,4.06122981,2462.4,2462.1,0.27061027]
[1747522697233,4.06035197,2462.9,2462.3,0.7901]
[1747522697434,4.06035197,2462.9,2462.2,0.55]
[1747522697435,4.06035197,2462.9,2462.4,0.7901]
[1747522698437,4.060427,2462.8,2462.4,0.7901]
[1747522698779,4.060427,2462.8,2462.6,0.7901]
[1747522698943,4.06058391,2462.7,2462.6,0.7901]
[1747522699146,4.060427,2462.8,2462.2,0.7901]
[1747522699346,4.06118916,2462.4,2462.2,0.7901]
[1747522699559,4.06108364,2462.4,2462.2,0.7901]
[1747522699757,4.06103368,2462.5,2462.2,1.0232423]
[1747522699957,4.06108704,2462.4,2462.2,1.0232423]
[1747522700158,4.06124355,2462.3,2462.2,1.0232423]
[1747522700385,4.06108704,2462.4,2462.2,1.0232423]
[1747522700716,4.06108704,2462.4,2462.2,0.7901]
[1747522701572,7.875,2462.6,2462.2,0.7901]
[1747522701759,4.06100097,2462.5,2462.2,0.7901]
[1747522701961,7.875,2462.6,2462.2,0.7901]
[1747522702157,4.06091644,2462.5,2462.2,0.7901]
[1747522702781,4.06091644,2462.5,2462.2,1.27527825]
[1747522703080,4.06091644,2462.5,2462.2,0.7901]
[1747522703492,4.06080111,2462.6,2462.2,0.7901]
[1747522703644,4.06080111,2462.6,2462.0,4.0616707]
[1747522703645,7.88,2462.8,2462.3,4.06115268]
[1747522703843,15.874,2462.8,2462.4,0.8153]
[1747522704683,4.06065425,2462.7,2462.4,0.8153]
[1747522704992,4.0609137,2462.5,2462.4,0.8153]
[1747522705175,15.874,2462.8,2462.4,0.8153]
[1747522705374,4.06073654,2462.7,2462.4,0.8153]
[1747522705688,4.06081795,2462.6,2462.4,0.8153]
[1747522705912,4.06069332,2462.7,2462.4,0.8153]
[1747522706113,4.06069332,2462.7,2462.4,1.30296786]
[1747522706481,4.06074904,2462.6,2462.4,1.30296786]
[1747522707099,4.0609137,2462.5,2462.4,1.30296786]
[1747522707306,4.06064021,2462.7,2462.4,0.8153]
[1747522707477,4.06085835,2462.6,2462.4,0.8153]
[1747522707665,4.06068412,2462.7,2462.4,0.8153]
[1747522708304,15.874,2462.8,2462.4,0.8153]
[1747522708967,4.0609137,2462.5,2462.4,0.8153]
[1747522709669,4.0609137,2462.5,2462.0,11.93567161]
[1747522709670,4.06159847,2462.1,2462.0,0.817]
[1747522710071,4.06132043,2462.3,2462.0,0.817]
[1747522710825,4.06132043,2462.3,2462.0,1.30488946]
[1747522711120,4.0614164,2462.2,2462.0,1.30488946]
[1747522711288,4.0614164,2462.2,2462.0,0.817]
[1747522712226,7.873,2462.4,2462.0,0.817]
[1747522712524,4.06126634,2462.3,2462.0,0.817]
[1747522713225,7.873,2462.4,2462.0,0.817]
[1747522713611,11.93418554,2462.4,2462.0,0.817]
[1747522713811,11.93418554,2462.4,2462.0,1.71109136]
[1747522714308,4.06058391,2462.7,2462.2,4.06137207]
[1747522714656,7.873,2462.7,2462.3,0.7518]
[1747522714951,4.06053317,2462.8,2462.3,0.7518]
[1747522715108,4.06053317,2462.8,2462.3,4.81295364]
[1747522715309,4.06061135,2462.7,2462.4,0.88742622]
[1747522715932,16.70658806,2462.9,2462.3,0.7518]
[1747522716244,4.06090353,2462.6,2462.3,0.7518]
[1747522716444,4.06095397,2462.5,2462.3,0.7518]
[1747522719016,8.83358806,2462.9,2462.3,0.7518]
[1747522719320,4.06051329,2462.8,2462.3,4.81295284]
[1747522719535,4.06051329,2462.8,2462.4,0.8874252]
[1747522719725,4.06060189,2462.7,2462.4,0.8874252]
[1747522720244,4.06060307,2462.7,2462.4,0.8874252]
[1747522720414,4.06060307,2462.7,2462.3,0.7518]
[1747522722145,4.06051692,2462.8,2462.3,4.8129667]
[1747522722347,4.06059444,2462.7,2462.3,4.8129667]
[1747522722714,4.06059444,2462.7,2462.3,0.7518]
[1747522722914,4.06059444,2462.7,2462.3,1.63926394]
[1747522725448,4.06059444,2462.7,2462.3,5.70045656]
[1747522725647,4.06047494,2462.8,2462.4,4.06107451]
[1747522725873,8.83358806,2462.9,2462.5,0.7741]
[1747522726079,8.83358806,2462.9,2462.5,4.83491604]
[1747522726279,7.87,2463.0,2462.5,5.81326149]
[1747522726571,4.06025787,2462.9,2462.5,5.81326149]
[1747522726880,4.06043001,2462.8,2462.5,1.75244545]
[1747522727080,4.06067017,2462.7,2462.5,0.7741]
[1747522727267,4.06051841,2462.8,2462.5,0.7741]
[1747522728071,4.0605904,2462.7,2462.5,0.7741]
[1747522728486,4.0605904,2462.7,2462.1,4.06149563]
[1747522728487,4.06028575,2462.9,2462.1,4.06157099]
[1747522728788,4.06084228,2462.6,2462.2,0.7741]
[1747522729086,4.06061355,2462.7,2462.2,4.8354508]
[1747522729287,4.06061355,2462.7,2462.2,4.83542965]
[1747522729646,4.06061355,2462.7,2462.2,0.7741]
[1747522729850,4.06075472,2462.6,2462.2,4.83542051]
[1747522730189,4.06075472,2462.6,2462.3,0.65770963]
[1747522730689,4.06066552,2462.7,2462.3,0.65770963]
[1747522730887,4.0603485,2462.9,2462.4,4.06095676]
[1747522731079,7.868,2463.0,2462.5,4.82654133]
[1747522731392,4.06025763,2462.9,2462.5,5.78108452]
[1747522731558,4.06043161,2462.8,2462.5,1.72024319]
[1747522733184,4.06058787,2462.7,2462.5,1.72024319]
[1747522733399,4.0607156,2462.7,2462.5,1.72024319]
[1747522733610,4.0607156,2462.7,2462.5,0.7657]
[1747522733909,4.06082336,2462.6,2462.3,1.42340963]
[1747522734065,4.06082336,2462.6,2462.3,0.7657]
[1747522734466,4.06066269,2462.7,2462.3,0.7657]
[1747522736019,4.06014366,2463.0,2462.4,4.06101225]
[1747522736172,4.06042861,2462.8,2462.4,4.06101225]
[1747522736378,4.06042861,2462.8,2462.4,4.94981818]
[1747522737096,11.92714366,2463.0,2462.4,4.94981818]
[1747522737097,4.06032704,2462.9,2462.4,4.94981818]
[1747522737413,4.06042563,2462.8,2462.4,4.94981818]
[1747522738715,7.867,2463.0,2462.4,0.88880593]
[1747522738920,4.06077271,2462.6,2462.3,0.7657]
[1747522740423,4.06064468,2462.7,2462.3,0.7657]
[1747522740579,4.06064468,2462.7,2462.3,4.82692315]
[1747522740783,4.06064468,2462.7,2462.3,0.7657]
[1747522741221,4.06075633,2462.6,2462.3,0.7657]
[1747522742542,4.06107862,2462.4,2462.3,0.7657]
[1747522742740,4.06166307,2462.1,2461.9,1.41098996]
[1747522743033,4.06149289,2462.2,2461.9,0.64528996]
[1747522743534,4.06170602,2462.1,2461.9,0.64528996]
[1747522745517,4.06173842,2462.0,2461.9,0.64528996]
[1747522745717,4.06173842,2462.0,2461.7,0.7657]
[1747522746019,4.06173842,2462.0,2461.7,2.03511666]
[1747522747605,4.06169134,2462.1,2461.7,2.03511666]
[1747522748141,4.06174446,2462.0,2461.7,2.03511666]
[1747522749146,4.06162795,2462.1,2461.7,2.03511666]
[1747522749439,4.06178843,2462.0,2461.7,2.03511666]
[1747522749652,4.06198273,2461.9,2461.7,0.7657]
[1747522749944,4.06180969,2462.0,2461.7,0.7657]
[1747522750141,8.0,2462.3,2461.7,0.7657]
[1747522750343,4.06205726,2461.9,2461.7,0.7657]
[1747522751382,4.06140849,2462.2,2461.3,18.3302]
[1747522751539,4.06244371,2461.6,2461.3,0.7952]
[1747522751745,4.06244371,2461.6,2461.3,2.91855298]
[1747522752051,4.06238504,2461.7,2461.3,2.91855298]
[1747522752270,4.06223341,2461.7,2461.3,2.91855298]
[1747522752466,4.06215803,2461.8,2461.3,2.91855298]
[1747522752782,12.06159091,2462.1,2461.3,2.91855298]
[1747522752783,4.06259277,2461.5,2461.3,0.7952]
[1747522753088,4.06305867,2461.2,2461.1,0.64528996]
[1747522753244,4.06296957,2461.3,2461.1,0.64528996]
[1747522753880,4.06305867,2461.2,2461.1,0.64528996]
[1747522754081,4.06305867,2461.2,2460.9,0.7952]
[1747522754375,8.0,2461.4,2460.9,0.7952]
[1747522754579,4.06320207,2461.2,2460.9,0.7952]
[1747522754745,4.06320207,2461.2,2460.9,1.28110149]
[1747522755146,8.0,2461.4,2460.9,0.7952]
[1747522755147,4.06338886,2461.0,2460.9,0.7952]
[1747522755448,4.06331337,2461.1,2460.9,0.7952]
[1747522755650,4.06338886,2461.0,2460.9,0.7952]
[1747522756071,4.06338886,2461.0,2460.7,0.8115]
[1747522756275,4.06333671,2461.1,2460.7,0.8115]
[1747522756450,4.06315086,2461.2,2460.8,1.27435062]
[1747522757789,4.06302252,2461.3,2460.8,1.27435062]
[1747522758383,4.06312583,2461.2,2460.8,1.27435062]
[1747522758984,4.06302252,2461.3,2460.8,5.33795031]
[1747522759284,4.06293152,2461.3,2460.8,5.33795031]
[1747522759483,4.06307209,2461.2,2460.8,5.33795031]
[1747522759886,4.06326801,2461.1,2460.8,1.27435062]
[1747522760052,4.06339581,2461.0,2460.7,0.8115]
[1747522760251,4.06325301,2461.1,2460.7,0.8115]
[1747522761188,4.06307972,2461.2,2460.7,0.8115]
[1747522761189,4.0631419,2461.2,2460.7,4.8753605]
[1747522761882,4.06323733,2461.1,2460.7,4.8753605]
[1747522762185,4.06323733,2461.1,2460.7,4.87535575]
[1747522762356,4.06314265,2461.2,2460.7,6.5560877]
[1747522762756,4.06297924,2461.3,2460.8,4.06365581]
[1747522763288,4.06313095,2461.2,2460.7,6.55603949]
[1747522763885,4.06324895,2461.1,2460.7,2.49223195]
[1747522764189,4.06335735,2461.1,2460.7,2.49223195]
[1747522764388,8.0,2461.4,2460.7,2.49223195]
[1747522764584,8.0,2461.4,2460.7,0.8115]
[1747522764907,4.06289359,2461.3,2460.7,0.8115]
[1747522765213,4.06369853,2460.9,2460.5,0.8115]
[1747522765395,4.06379492,2460.8,2460.5,0.8115]
[1747522765599,15.732,2461.0,2460.3,0.8136]
[1747522765806,8.0,2460.9,2460.1,4.87843638]
[1747522765972,4.06413376,2460.6,2460.1,5.83731924]
[1747522766177,4.06391357,2460.7,2460.2,4.06471018]
[1747522766778,4.06405656,2460.6,2460.2,4.06471018]
[1747522766973,4.06405656,2460.6,2460.1,1.77248286]
[1747522766974,4.06371911,2460.8,2460.3,4.06452632]
[1747522767278,4.06393224,2460.7,2460.2,4.06461638]
[1747522767478,4.06393224,2460.7,2460.2,5.05480821]
[1747522768412,4.06393224,2460.7,2460.3,4.06451867]
[1747522768616,4.06393224,2460.7,2460.2,5.05480904]
[1747522768915,4.06373261,2460.8,2460.3,4.06445806]
[1747522769211,12.06362827,2460.9,2460.4,4.87783203]
[1747522769409,7.862,2460.8,2460.5,4.0641511]
[1747522769992,7.862,2460.8,2460.4,5.87121434]
[1747522770922,7.862,2460.8,2460.4,1.80684819]
[1747522771126,7.862,2460.8,2460.4,0.8136]
[1747522771426,11.92579807,2460.8,2460.4,0.8136]
[1747522772220,11.92579807,2460.8,2460.4,4.87795178]
[1747522772421,8.0,2461.0,2460.5,4.06419705]
[1747522772609,12.06337664,2461.1,2460.7,4.84485596]
[1747522772815,7.861,2461.0,2460.7,4.84484563]
[1747522773189,7.861,2461.0,2460.7,0.781]
[1747522773403,15.861,2461.1,2460.7,0.781]
[1747522773600,4.06338886,2461.0,2460.7,0.781]
[1747522774127,19.924268,2461.1,2460.7,0.781]
[1747522774792,12.063268,2461.1,2460.7,0.781]
[1747522775025,19.923268,2461.1,2460.7,4.84485245]
[1747522775205,4.06344581,2461.0,2460.7,0.781]
[1747522775507,4.06363094,2460.9,2460.7,0.781]
[1747522775918,4.06344691,2461.0,2460.7,0.781]
[1747522776543,4.06371911,2460.8,2460.3,0.8292]
[1747522776745,4.06363399,2460.9,2460.4,0.86912]
[1747522777012,4.06363399,2460.9,2460.4,4.93338315]
[1747522777249,4.06345699,2461.0,2460.5,4.89329732]
[1747522777644,19.92330427,2461.1,2460.6,4.06404491]
[1747522777859,7.86,2461.1,2460.8,0.8292]
[1747522778566,11.92323964,2461.1,2460.8,0.8292]
[1747522779065,4.06311279,2461.2,2460.8,4.89290706]
[1747522779267,7.859,2461.1,2460.8,0.8292]
[1747522779567,11.92227884,2461.1,2460.8,0.8292]
[1747522779938,7.859,2461.1,2460.5,0.8292]
[1747522780160,4.06380339,2460.8,2460.5,0.8292]
[1747522780361,4.06380339,2460.8,2460.5,1.40547626]
[1747522781158,4.06358621,2460.9,2460.5,1.40547626]
[1747522782167,12.06347037,2461.0,2460.5,5.46957192]
[1747522782363,12.06347037,2461.0,2460.5,1.40547626]
[1747522782567,12.06347037,2461.0,2460.6,4.06402092]
[1747522783565,8.0,2461.0,2460.7,4.06381602]
[1747522783955,8.0,2461.0,2460.8,0.8292]
[1747522784162,4.06355398,2460.9,2460.8,0.8292]
[1747522785483,4.06355398,2460.9,2460.6,0.7989]
[1747522785654,4.06355398,2460.9,2460.6,1.42975057]
[1747522786411,8.0,2461.0,2460.6,1.42975057]
[1747522786711,4.06355398,2460.9,2460.6,0.7989]
[1747522787923,12.06347921,2461.0,2460.6,0.7989]
[1747522789131,12.06347921,2461.0,2460.6,4.86293126]
[1747522789277,8.0,2461.0,2460.7,4.06387936]
[1747522789592,8.0,2461.0,2460.6,4.86285567]
[1747522789792,8.0,2461.0,2460.6,5.90009803]
[1747522790613,11.92127899,2461.1,2460.7,4.06384095]
[1747522790926,4.06339855,2461.0,2460.6,5.900126]
[1747522791324,4.06360417,2460.9,2460.6,1.83614236]
[1747522791530,4.06360417,2460.9,2460.6,0.7989]
[1747522793986,4.06380831,2460.8,2460.6,0.7989]
[1747522794187,4.06388426,2460.7,2460.6,0.7989]
[1747522794808,4.06364697,2460.9,2460.6,0.7989]
[1747522796231,4.06373313,2460.8,2460.6,0.7989]
[1747522796597,4.06364429,2460.9,2460.6,0.7989]
[1747522796796,4.06343825,2461.0,2460.6,4.86292095]
[1747522797110,11.92132428,2461.1,2460.6,5.84248963]
[1747522797709,11.92132428,2461.1,2460.6,1.77853682]
[1747522797710,4.06340373,2461.0,2460.6,1.77853682]
[1747522798035,4.06340373,2461.0,2460.6,5.84255727]
[1747522798794,4.06362398,2460.9,2460.6,0.7989]
[1747522798991,7.858,2461.1,2460.6,0.7989]
[1747522798992,4.06374289,2460.8,2460.6,0.7989]
[1747522799396,4.06374289,2460.8,2460.4,4.85927135]
[1747522799835,4.06431766,2460.5,2460.2,1.44018996]
[1747522800028,4.06073784,2460.5,2460.2,1.44018996]
[1747522800333,4.06440342,2460.4,2460.2,0.64528996]
[1747522800531,4.06429825,2460.5,2460.2,0.64528996]
[1747522801361,1.45325418,2461.5,2460.4,0.7916]
[1747522801658,11.91557405,2460.9,2460.4,4.85590887]
[1747522801860,7.852,2460.9,2460.4,0.7916]
[1747522802029,4.06373221,2460.8,2460.4,4.85588579]
[1747522803038,4.06402856,2460.7,2460.4,0.7916]
[1747522803233,4.06395838,2460.7,2460.4,0.7916]
[1747522803555,4.06371911,2460.8,2460.4,0.7916]
[1747522803863,4.06413329,2460.6,2460.4,0.7916]
[1747522804658,4.06405535,2460.6,2460.4,0.7916]
[1747522804959,4.06405535,2460.6,2460.2,0.7916]
[1747522805131,4.06405535,2460.6,2460.2,2.53346532]
[1747522805326,4.06425393,2460.5,2460.2,2.53346532]
[1747522805552,4.06404941,2460.6,2460.2,0.7916]
[1747522805731,4.06416868,2460.6,2460.2,0.7916]
[1747522806060,4.06425072,2460.5,2460.2,0.7916]
[1747522807399,7.849,2460.4,2460.1,0.64528996]
[1747522807527,4.06463126,2460.3,2460.1,0.64528996]
[1747522807733,4.06472329,2460.2,2460.0,0.7916]
[1747522808361,4.06472329,2460.2,2459.8,0.7916]
[1747522808574,4.06490731,2460.1,2459.8,1.74840315]
[1747522808867,4.06485403,2460.2,2459.8,0.7916]
[1747522809242,4.06487689,2460.1,2459.8,0.7916]
[1747522809562,4.06517142,2460.0,2459.7,0.64528996]
[1747522810432,4.06517142,2460.0,2459.6,4.85729842]
[1747522811664,4.06517142,2460.0,2459.6,0.7916]
[1747522812254,4.06494755,2460.1,2459.6,4.85729015]
[1747522812630,4.06480272,2460.2,2459.7,4.06546781]
[1747522812832,4.06490877,2460.1,2459.7,4.06546781]
[1747522813268,4.06490877,2460.1,2459.6,4.85723053]
[1747522813655,4.06477298,2460.2,2459.7,4.06551825]
[1747522813847,4.06487378,2460.2,2459.7,4.06544427]
[1747522814139,7.853,2460.4,2459.9,0.753]
[1747522814345,15.701,2460.4,2460.1,4.06479533]
[1747522814732,15.701,2460.4,2459.9,0.753]
[1747522814932,7.848,2460.5,2460.1,4.06473413]
[1747522815133,12.06397707,2460.7,2460.2,4.06469896]
[1747522815479,7.848,2460.6,2460.3,4.84204809]
[1747522816272,17.554,2460.9,2460.3,1.4511328]
[1747522816435,0.47350892,2461.1,2460.8,4.06371911]
[1747522817438,0.47350892,2461.1,2460.7,4.06379359]
[1747522817773,8.32050892,2461.1,2460.7,4.06379359]
[1747522817970,8.32050892,2461.1,2460.8,0.8936289]
[1747522817971,12.38273679,2461.1,2460.8,0.8936289]
[1747522818176,4.06347927,2461.0,2460.6,0.8085]
[1747522819473,4.06356013,2460.9,2460.6,0.8085]
[1747522819677,4.06356013,2460.9,2460.4,4.87280442]
[1747522819878,4.06356013,2460.9,2460.4,6.6192935]
[1747522820373,4.06347785,2461.0,2460.6,4.0640341]
[1747522820674,8.31950892,2461.1,2460.7,4.06374442]
[1747522821265,12.3827396,2461.1,2460.7,4.06374442]
[1747522822440,11.90923068,2461.1,2460.7,4.06374442]
[1747522822880,4.06339061,2461.0,2460.5,0.7761]
[1747522823067,4.06339061,2461.0,2460.6,0.25225891]
[1747522823578,11.90929753,2461.1,2460.6,4.31626011]
[1747522823773,4.06349633,2461.0,2460.6,0.25225891]
[1747522824075,4.06349633,2461.0,2460.6,4.3162972]
[1747522824276,4.06349633,2461.0,2460.6,0.25225891]
[1747522824476,11.90931942,2461.1,2460.6,4.31629182]
[1747522825383,4.06341192,2461.0,2460.6,4.31629182]
[1747522825680,4.06341192,2461.0,2460.6,0.25225891]
[1747522825883,4.06341192,2461.0,2460.6,4.31630077]
[1747522826384,11.90930793,2461.1,2460.6,4.31630077]
[1747522826567,8.0,2461.3,2460.8,0.7761]
[1747522826768,8.83358806,2461.4,2461.1,4.06312041]
[1747522826971,8.83358806,2461.4,2461.2,4.83904928]
[1747522827180,7.852,2461.5,2461.2,4.83909417]
[1747522827387,4.06198814,2461.9,2461.4,4.06261345]
[1747522827556,7.842,2461.7,2461.4,4.06261345]
[1747522827754,7.842,2461.7,2461.3,0.48390942]
[1747522828056,4.06241426,2461.6,2461.2,4.83908382]
[1747522828242,7.842,2461.7,2460.9,4.06346266]
[1747522828243,4.06283013,2461.4,2460.9,4.06346266]
[1747522828447,4.06325866,2461.1,2460.8,0.7761]
[1747522828755,11.90410786,2461.2,2460.8,0.7761]
[1747522828947,11.90410786,2461.2,2460.8,4.8398041]
[1747522829276,4.06328428,2461.1,2460.8,0.7761]
[1747522829476,4.06329265,2461.1,2460.7,0.48563052]
[1747522829781,4.06325327,2461.1,2460.7,5.55056799]
[1747522829984,11.90414608,2461.2,2460.7,5.55056799]
[1747522830274,7.841,2461.2,2460.8,4.06370227]
[1747522830479,7.841,2461.2,2460.7,1.48675846]
[1747522830644,15.681,2461.3,2461.0,0.8151]
[1747522830954,7.84,2461.4,2461.0,4.87844289]
[1747522831293,11.90281358,2461.4,2461.0,5.36632443]
[1747522831478,11.90265451,2461.5,2461.0,5.36632443]
[1747522831983,14.40265451,2461.5,2461.0,5.36632443]
[1747522832343,10.34,2461.5,2461.2,4.06304441]
[1747522832546,7.84,2461.5,2461.1,4.06313053]
[1747522832982,4.06243954,2461.6,2461.1,4.06313053]
[1747522833159,11.90243954,2461.6,2461.1,4.06313053]
[1747522834149,4.06195793,2461.9,2461.1,0.94294038]
[1747522834349,4.06195793,2461.9,2461.3,4.06287518]
[1747522834350,19.74117097,2461.8,2461.3,4.06287518]
[1747522834548,4.062251,2461.7,2461.2,4.84967006]
[1747522834772,4.06233581,2461.7,2461.2,0.7867]
[1747522834944,4.06257655,2461.5,2461.2,0.7867]
[1747522835385,4.06257655,2461.5,2461.0,4.85003536]
[1747522835581,4.06257655,2461.5,2461.0,5.74139429]
[1747522835885,4.06257655,2461.5,2461.1,4.06321649]
[1747522837109,4.06257655,2461.5,2461.1,4.06321781]
[1747522838505,4.06246342,2461.6,2461.1,4.06321781]
[1747522838662,4.06246342,2461.6,2461.2,4.06305376]
[1747522839194,8.83358806,2462.0,2461.3,0.7538]
[1747522839487,16.67358806,2462.0,2461.4,0.04062511]
[1747522839687,16.67358806,2462.0,2461.5,0.7538]
[1747522839983,19.73788216,2462.0,2461.5,4.81627769]
[1747522840155,19.73788216,2462.0,2461.6,4.06236643]
[1747522840666,4.06204588,2461.9,2461.5,0.7538]
[1747522840849,4.0620425,2461.9,2461.5,0.7538]
[1747522841045,4.06216188,2461.8,2461.3,4.84556641]
[1747522841287,4.06216188,2461.8,2461.4,0.89085411]
[1747522841865,4.06176407,2462.0,2461.4,4.95352082]
[1747522842190,7.835,2461.9,2461.5,4.06256347]
[1747522842900,12.06144616,2462.2,2461.5,0.7827]
[1747522843073,8.83358806,2462.4,2461.9,4.84454291]
[1747522843274,16.66758806,2462.4,2462.2,4.06139001]
[1747522843778,16.66758806,2462.4,2462.1,4.06155764]
[1747522844178,16.66758806,2462.4,2462.0,4.06168117]
[1747522844365,16.66758806,2462.4,2461.9,1.26715429]
[1747522844566,16.66758806,2462.4,2462.1,4.06148171]
[1747522846401,16.66758806,2462.4,2462.0,4.0616572]
[1747522846603,20.72879721,2462.4,2461.9,0.7827]
[1747522846803,4.06183193,2462.0,2461.6,0.48563052]